{"text_format":"1","workbook":"xlsx","n_sheets":3,"sheets":["SUIVI","ÉQUIPEMENTS","DATA"],"not_rendered":{"charts":0,"images":0,"macros":1,"external_links":0,"defined_names":6,"comments":1,"pivot_tables":0},"unopened":[],"bounds":{"document_bytes":16777216,"sheet_cells":100000,"rows_first":2000,"rows_last":500,"rows_between":2000,"halvings":0,"cell_chars":16384,"cell_head_chars":4096},"cells_cut":0,"cells_raw":0,"read":"whole","date_system":"1900"}

{"sheet":"SUIVI","index":0,"n_rows":68,"n_cols":54,"rows_kept":68,"cut":false,"hidden":false,"merged":[[33,0,36,0],[2,0,3,0],[12,0,15,0],[4,0,7,0],[9,0,11,0],[19,0,23,0],[16,0,18,0],[28,0,29,0],[31,0,32,0],[26,0,27,0],[0,1,0,12],[0,13,0,22],[46,7,47,8],[46,15,47,16],[43,8,44,14]]}
[null,"2018-09-04",null,null,null,null,null,null,null,null,null,null,null,"",null,null,null,null,null,null,null,null,null,null,null,null,null,null,null,null,null,null,null,null,null,null,null,null,null,null,null,null,null,null,null,null,null,null,null,null,null,null,null,1]
["JOBS","CHANTIER 1","CHANTIER 2","CHANTIER 4","CHANTIER 5","CHANTIER 7","CHANTIER 19","CHANTIER 32","CHANTIER 3","CHANTIER 6","CHANTIER 7",null,null,null,"CHANTIER 26","CHANTIER 35","CHANTIER 16","CHANTIER 22","CHANTIER 21","CHANTIER 10","CHANTIER 15",null,"CHANTIER 11"]
["MACHINERIE",{"$f":"IFERROR(VLOOKUP(B2,JOBS,2,0),\"\")","v":"17-5456"},"17-5398","17-5468","18-5578","18-5599","18-5612","18-5540","18-5565","18-5542","18-5599",null,{"$f":"IFERROR(VLOOKUP(M2,JOBS,2,0),\"\")","v":""},"","16-5307","1165","18-5581","18-5593","18-5579","18-5588","18-5583","","18-5546"]
[null,{"$f":"IFERROR(VLOOKUP(B2,JOBS,3,0),\"\")","v":"Charles Viens"},0,"Delmar Lavallée","Denis Jacques","Éric Méthot","Nicolas Babin","Javier Boncoeur",0,"Éric Tanguay","Éric Méthot",{"$f":"IFERROR(VLOOKUP(L2,JOBS,3,0),\"\")","v":""},{"$f":"IFERROR(VLOOKUP(M2,JOBS,3,0),\"\")","v":""},"",0,"Luc Béland",0,"Franck Rousseau",0,"Normand Paiement","Gabriel Gamelin","",0]
["BOBCAT ",1320,925,1020,920,620,690,1015,450,695,null,null,null,null,null,"1165",950,null,"1010",null,"1325",null,"1280"]
[null,null,null,null,null,null,360,1095,null,null,null,null,null,null,null,"1275"]
[null,null,null,null,null,null,null,1205]
[]
["LOADER"]
["BROUETTE",null,null,null,null,null,null,475,null,null,null,null,null,null,null,null,null,null,null,"1105"]
[null,null,null,null,null,null,null,"1030"]
[null,null,null,null,null,null,null,1360]
["PELLES",null,null,null,null,null,495,750,null,null,null,null,null,null,null,"755",null,null,null,null,"1390"]
[null,null,null,null,null,null,null,865,null,null,null,null,null,null,null,"615"]
[null,null,null,null,null,null,null,1110]
[null,null,null,null,null,null,null,1300]
["TRAMAC BOBCAT",null,null,null,null,null,540,"1235",null,null,null,null,null,null,null,735]
[null,null,null,null,null,null,null,null,null,null,null,null,null,null,null,"1065"]
[]
["TRAMAC PELLE",null,null,null,null,null,null,800,null,null,null,null,null,null,null,780]
[null,null,null,null,null,null,null,"1115",null,null,null,null,null,null,null,"1175"]
[null,null,null,null,null,null,null,"1170"]
[null,null,null,null,null,null,null,"1240"]
[null,null,null,null,null,null,null,"1305"]
["PAM",null,null,null,null,null,null,3]
["GODET À GRAPPIN",null,null,null,null,null,null,2]
["BALAI MÉCANIQUE",null,null,null,null,null,null,1]
[null,null,null,null,null,null,null,635,null,null,null,null,null,null,null,"1265"]
["LIFT - MERLOT",null,null,null,null,null,null,135,null,null,null,null,null,null,null,null,null,"980"]
[]
["NACELLES",null,null,null,null,null,null,null,null,null,null,null,null,null,null,null,null,"890"]
["COMPRESSEURS ",null,null,560,null,null,null,600,null,null,null,null,null,null,null,"830"]
[]
["HYDRO DEMOLITION",null,null,"1380",null,205,null,330]
[null,null,null,null,null,null,null,515]
[null,null,null,null,null,null,null,880]
[null,null,null,null,null,null,null,"1080"]
["CAMIONS",{"$f":"IFERROR(VLOOKUP(B4,pickup,2,0),\"\")","v":0},"",710,0,910,0,1045,"",0,910,"","","","",1190,"",935,"",0,975,"",""," "]
["RÉSERVOIR DIESEL",null,null,null,null,null,null,null,null,null,null,null,null,null,1,null,null,1]
["MACHINE A PRESSION",null,null,null,null,null,null,null,null,null,null,null,null,null,1,null,1]
["ACCESSOIRES"]
["BENNE A DÉCHETS",null,null,null,null,null,null,null,null,null,null,null,null,null,1,null,2,null,1,null,1,1]
["CONTENEURS ",null,null,null,null,null,null,null,null,null,null,null,null,null,null,null,1,null,null,1]
[null,null,null,null,null,null,null,null,"DISPONIBLES"]
[]
[]
[null,null,null,null,null,null,null,"VILLE1",null,null,null,null,null,null,null,"VILLE2"]
[]
[]
["BOBCAT ",null,null,null,null,545,945,null,null,null,null,null,null,420,855,"1040"]
["LOADER",null,null,null,null,745,null,null,null,null,null,null,null,835]
["BROUETTE",null,null,null,null,null,null,null,null,null,null,null,null,"1035",460]
["PELLES",null,null,null,null,null,null,null,null,null,null,null,null,"580",900]
["TRAMAC BOBCAT",null,null,null,null,555,"1310",null,null,null,null,null,null,480]
["TRAMAC PELLE",null,null,null,null,480,860,"1295",null,null,null,null,null,930,"1060","1250",null,null,610]
["PAM"]
["GODET À GRAPPIN"]
["BALAI MÉCANIQUE",null,null,null,null,790]
["LIFT - MERLOT",null,null,null,null,"275","1155","1350",null,null,null,null,null,"985"]
["NACELLES",null,null,null,null,"895"]
["COMPRESSEURS ",null,null,null,null,"825","1075"]
["CAMIONS",null,null,null,null,885,1085,null,null,null,null,null,null,410]
["HYDRO DEMOLITION",null,null,null,null,220]
["RÉSERVOIR DIESEL"]
["MACHINE A PRESSION"]
["ACCESSOIRES"]
["BENNE A DÉCHETS"]
["CONTENEURS "]

{"sheet":"ÉQUIPEMENTS","index":1,"n_rows":184,"n_cols":5,"rows_kept":184,"cut":false,"hidden":false,"merged":[]}
["ÉQUIPEMENTS"]
["TRACTEURS , TRANSPORTEURS , LOADERS"]
["TRACTEUR 763 G  360"," 360"]
["TRACTEUR 763G   420"," 420"]
["TRACTEUR S150  450"," 450"]
["TRACTEUR S185  545"," 545"]
["TRACTEUR S150   620"," 620"]
["TRACTEUR S150  690"," 690"]
["TRACTEUR S150  695"," 695"]
["TRACTEUR CATERPILLAR 226B  855"," 855"]
["TRACTEUR S160  920"," 920"]
["TRACTEUR S160  925"," 925"]
["TRACTEUR S160  945"," 945"]
["TRACTEUR S160  950"," 950"]
["TRACTEUR S160  1010","1010"]
["TRACTEUR S160  1015","1015"]
["TRACTEUR S160  1020","1020"]
["TRACTEUR 553  1040","1040"]
["TRACTEUR S550  1095","1095"]
["TRACTEUR CASE SR175  1165","1165"]
["TRACTEUR CASE SR175  1205","1205"]
["TRACTEUR CASE SR175  1275","1275"]
["TRACTEUR CASE SR175  1280","1280"]
["TRACTEUR CASE SV185  1320","1320"]
["TRACTEUR CASE SV185  1325","1325"]
["LOADER CATERPILLAR 908 H  745"," 745"]
["LOADER CATERPILLAR 908 H  835"," 835"]
["TRANSPORTEUR À BÉTON  460"," 460"]
["TRANSPORTEUR BÉTON WHITEMAN  475"," 475"]
["TRANSPORTEUR YANMAR C30  1030","1030"]
["TRANSPORTEUR YANMAR C30  1035","1035"]
["TRANSPORTEUR MULTIQUIP WBH-16  1105","1105"]
["TRANSPORTEUR MULTIQUIP WBH-16 EF  1360","1360"]
["EXC.S"]
["EXC. TRACTEUR 322  495","495"]
["EXC. KUBOTA KX-41-3  580","580"]
["EXC. CATERPILLAR 304CCR  615","615"]
["EXC. KOMATSU PC27MR3  750","750"]
["EXC. KUBOTA KX413  755","755"]
["EXC. KOMATSU PC 35  865","865"]
["EXC. CATERPILLAR 304 CCR  900",900]
["EXC. KUBOTA KX018  1110","1110"]
["EXC. KUBOTA KX71-3HGLS  1300","1300"]
["EXCAVTRICE CASE CX145C 1390","1390"]
["COMPRESSEURS"]
["COMPRESSEUR  375 CFM  530","530"]
["COMPRESSEUR  100HP  560","560"]
["COMPRESSEUR  LS-60 600","600"]
["COMPRESSEUR  185 CFM  685","685"]
["COMPRESSEUR 375 CFM 825","825"]
["COMPRESSEUR 375 CFM 830","830"]
["COMPRESSEUR 375 CFM 960","960"]
["COMPRESSEUR 185 CFM  1050","1050"]
["COMPRESSEUR 375 CFM  1075","1075"]
["LIFTS"]
["LIFT TOYOTA FG25  135","135"]
["LIFT TOYOTA  275","275"]
["CHARIOT LIFT HYSTER H50XM  340","340"]
["CHARIOT HYSTER H110XL  490","490"]
["NACELLE GÉNIE S45  890","890"]
["NACELLE SNORKEL TBA 60  895","895"]
["MERLO  980","980"]
["NACELLE GÉNIE S60  985","985"]
["LIFT TOYOTA 8FGU25  1155","1155"]
["CHARIOT DIECI ICARUS 40.17  1350","1350"]
[]
["TRAMACS + PAMS",null,null,"ATTACHES"]
["IMPACT KUBOTA KXB400N  480"," 480","ok","TRACTEUR","QC"]
["IMPACT KUBOTA KXB400N  540"," 540","ok","TRACTEUR","MR"]
["IMPACT KUBOTA KXB400N  555"," 555","ok","TRACTEUR","MR"]
["IMPACT KUBOTA KXB400N  610"," 610","ok","pas attache","QC"]
["IMPACT KUBOTA KXB400  730"," 730"]
["IMPACT KUBOTA KXB400  735"," 735","ok","TRACTEUR","QC"]
["IMPACT CATERPILLAR H55DS  780"," 780","ok","caterpillar","QC"]
["IMPACT CATERPILAR H45DS  800"," 800","ok",null,"MR"]
["IMPACT CATERPILAR H55DS  930"," 930","ok","caterpillar","QC"]
["IMPACT ATLAS COPCO SB102  1060","1060","ok",null,"QC"]
["IMPACT ATLAS COPCO SB102  1065","1065","ok","TRACTEUR","QC"]
["IMPACT INDECO H500  1115","1115","ok","kubota","MR"]
["IMPACT ATLAS COPCO SB102  1170","1170","ok","komatsu","MR"]
["IMPACT ATLAS COPCO SB102  1175","1175","ok","kubota","QC"]
["IMPACT TRACTEUR HB680  1235","1235","ok","TRACTEUR","MR"]
["IMPACT TRACTEUR HB680  1240","1240","ok",null,"MR"]
["IMPACT ATLAS COPCO SB102  1245","1245"]
["IMPACT ATLAS COPCO  SB102  1250","1250","ok",null,"QC"]
["IMPACT ATLAS COPCO SB102  1305","1305","ok",null,"MR"]
["IMPACT ATLAS COPCO SB102  1310","1310","ok","TRACTEUR","MR"]
["SCARIFICATEUR TRACTEUR   760"," 760","ok","TRACTEUR","QC"]
["CISAILLE À BÉTON DARDA DRC 560  860"," 860","ok","komatsu","MR"]
["MÂCHOIRE DARDA CC520  1295","1295","ok","komatsu","MR"]
["PAM RNP IND  1055","1055","ok",null,"MR"]
["PAM RNP IND  1100","1100","ok",null,"MR"]
["PAM RNP IND  1135","1135","ok",null,"MR"]
["EAU"]
["ENGINE NLB  205"," 205"]
["ENGINE NLB  210"," 210"]
["ENGINE HP NLB 202500  215"," 215"]
["ENGINE HP NLB 202500  220"," 220"]
["ENGINE 330"," 330"]
["ROBOT NLB 4400  510"," 510"]
["ENGINE NLB 20600  515"," 515"]
["ROBOT AQUAJET 710V EVOLUTION  880"," 880"]
["ROBOT AQUAJET 710V EVOLUTION  1080","1080"]
["ENGINE NLB 40225G 1380","1380"]
["CAMIONS"]
["FORD F-150  410"," 410",null,"Arnou Bienvenue"]
["DODGE DAKOTA  470"," 470",null,"Arridano Talon"]
["DODGE DAKOTA  670"," 670",null,"Auriville Hervieux"]
["CHEVROLET SILVERADO   710"," 710",null,"Bevis Tessier"]
["DODGE DAKOTA  840"," 840",null,"Byron Daviau"]
["CHEVROLET SILVERADO   885"," 885",null,"Chappell Chartré"]
["CHEVROLET SILVERADO   910"," 910",null,"Charles Viens"]
["CHEVROLET SILVERADO   915"," 915",null,"Delmar Lavallée",710]
["CHEVROLET SILVERADO   935"," 935",null,"Denis Jacques"]
["CHEVROLET SILVERADO   940"," 940",null,"Éric Despins"]
["CHEVROLET SILVERADO   975"," 975",null,"Éric Méthot",910]
["FORD F550  1000","1000",null,"Éric Tanguay"]
["MITSUBISHI FUSO  FE180  1005","1005",null,"Franck Rousseau",935]
["GMC SIERRA 1500  1045","1045",null,"Frontino Sorel",940]
["CHEVROLET SILVERADO 1500  1085","1085",null,"Gabriel Gamelin",975]
["HINO 195D  1150","1150",null,"Ganelon Bélair"]
["FORD F150  1160","1160",null,"Germain Carignan"]
["TOYOTA TACOMA  1180","1180",null,"Honoré Quessy"]
["FORD F150  1185","1185",null,"Javier Boncoeur",1045]
["FORD F150  1190","1190",null,"Jay Tougas"]
["RAM PROMASTER CITY  1210","1210",null,"Jean Couturier"]
["FORD F-150  1215","1215",null,"Karel Guertin",1160]
["CHEVROLET SILVERADO 1500  1220","1220",null,"Kerman Marleau",1180]
["CHEVROLET SILVERADO 1500  1225","1225",null,"Lance Mathieu",1185]
["FORD F-150  1255","1255",null,"Luc Béland",1190]
["FORD F-150  1260","1260",null,"Malagigi Deniger"]
["HINO 195  1285","1285",null,"Manville Hughes"]
["HINO 195D  1315","1315",null,"Manville Provencher",1215]
["CHEVROLET SILVERADO  1335","1335",null,"Marc Quinn",1225]
["CHEVROLET SILVERADO  1340","1340",null,"Marlon Berthelette",1255]
["GMC SIERRA  1345","1345",null,"Maslin Bourassa",1260]
["HINO 195  1355","1355",null,"Matthieu Thériault"]
["DODGE RAM  1365","1365",null,"Matthieu Varieur"]
["FORD TRANSIT  1370","1370",null,"Merle Saurel",1335]
["FORD TRANSIT  1375","1375",null,"Michel Batard"]
["CHEVROLET SILVERADO  1395",1390,null,"Nicolas Babin"]
[null,null,null,"Noël De La Ronde"]
[null,null,null,"Normand Paiement"]
[null,null,null,"Odo Ruel"]
[null,null,null,"Olivier Marquis"]
[null,null,null,"Olivier Turcotte"]
[null,null,null,"Paien Souplet"]
["REMORQUES"]
["REMORQUE MANAC V90  285"," 285"]
["REMORQUE TOWMA T10P  290"," 290"]
["REMORQUE ROUGE  425"," 425"]
["REMORQUE MANAC  525"," 525"]
["REMORQUE FORES TW612  700"," 700"]
["REMORQUE CAM   845"," 845"]
["ROULOTTE AFA IND   905"," 905"]
["REMORQUE IDEAL CARGO 6X12  1070","1070"]
["REMORQUE IDEAL  1125","1125"]
["REMORQUE IDEAL  1130","1130"]
["REMORQUE KING TRAIL  1195","1195"]
["REMORQUE EZ HAULER 6X12  1200","1200"]
["REMORQUE LAROCHE GAS4X8  1230","1230"]
["REMORQUE STEAL 6X12  1270","1270"]
["REMORQUE KING TRAIL  1385",1385]
["ACCESSOIRES"]
["MACHINE GUNITE ALIVA 246  320"," 320"]
["ENGINE HONDA V-TWIN  485"," 485"]
["ENGINE À BÉTON BUNKER B100  655"," 655"]
["UNITÉ HYDRAULIQUE BUNKER  660"," 660"]
["ENGINE IMER SMALL 50  665"," 665"]
["ENGINE GRACO   705"," 705"]
["TOUR ÉCLAIRAGE MAGNUM MLT40  870"," 870"]
["TOUR ÉCLAIRAGE MAGNUM MLT30  875"," 875"]
["MACHINE  HTC 950 RX  1120","1120"]
["BALAIS"]
["BALAI TRACTEUR  395"," 395"]
["BALAI TRACTEUR 60\"   635"," 635"]
["BALAI TRACTEUR   645"," 645"]
["BALAI TRACTEUR SB 60  790"," 790"]
["BALAI TRACTEUR 60\"  970"," 970"]
["BALAI TRACTEUR 74\"  1025","1025"]
["BALAI TRACTEUR 72\"  1145","1145"]
["BALAI TRACTEUR 60\"  1265","1265"]
[null,1]
[null,2]

{"sheet":"DATA","index":2,"n_rows":43,"n_cols":8,"rows_kept":43,"cut":false,"hidden":false,"merged":[]}
[null,"CHANTIERS","N°","CONTREMAITRE"]
[null,"CHANTIER 1","17-5456","Charles Viens"]
[null,"CHANTIER 2","17-5398"]
[null,"CHANTIER 3","18-5565"]
[null,"CHANTIER 4","17-5468","Delmar Lavallée",null,null,null,"Byron Daviau"]
[null,"CHANTIER 5","18-5578","Denis Jacques",null,null,null,"Chappell Chartré"]
[null,"CHANTIER 6","18-5542","Éric Tanguay",null,null,null,"Charles Viens"]
[null,"CHANTIER 7","18-5599","Éric Méthot",null,null,null,"Delmar Lavallée"]
[null,"CHANTIER 8","18-5559","Maslin Bourassa",null,null,null,"Denis Jacques"]
[null,"CHANTIER 9","18-5591",null,null,null,null,"Éric Despins"]
[null,"CHANTIER 10","18-5588","Normand Paiement",null,null,null,"Éric Méthot"]
[null,"CHANTIER 11","18-5546",null,null,null,null,"Éric Tanguay"]
[null,"CHANTIER 12","18-5572",null,null,null,null,"Franck Rousseau"]
[null,"CHANTIER 13","17-5505",null,null,null,null,"Frontino Sorel"]
[null,"CHANTIER 14","18-5550",null,null,null,null,"Gabriel Gamelin"]
[null,"CHANTIER 15","18-5583","Gabriel Gamelin",null,null,null,"Ganelon Bélair"]
[null,"CHANTIER 16","18-5581",null,null,null,null,"Germain Carignan"]
[null,"CHANTIER 17","18-5575","Malagigi Deniger",null,null,null,"Honoré Quessy"]
[null,"CHANTIER 18","18-5576",null,null,null,null,"Javier Boncoeur"]
[null,"CHANTIER 19","18-5612","Nicolas Babin",null,null,null,"Jay Tougas"]
[null,"CHANTIER 20","18-1111",null,null,null,null,"Jean Couturier"]
[null,"CHANTIER 21","18-5579",null,null,null,null,"Karel Guertin"]
[null,"CHANTIER 22","18-5593","Franck Rousseau",null,null,null,"Kerman Marleau"]
[null,"CHANTIER 23","18-5554","Germain Carignan",null,null,null,"Lance Mathieu"]
[null,"CHANTIER 24","17-5509","Jean Couturier",null,null,null,"Luc Béland"]
[null,"CHANTIER 25","18-5608","Marc Quinn",null,null,null,"Malagigi Deniger"]
[null,"CHANTIER 26","16-5307",null,null,null,null,"Manville Hughes"]
[null,"CHANTIER 27","18-5592","Chappell Chartré",null,null,null,"Manville Provencher"]
[null,"CHANTIER 28","18-5547","Byron Daviau",null,null,null,"Marc Quinn"]
[null,"CHANTIER 29","18-5548",null,null,null,null,"Marlon Berthelette"]
[null,"CHANTIER 30","18-5571",null,null,null,null,"Maslin Bourassa"]
[null,"CHANTIER 31","18-5594","Éric Despins",null,null,null,"Matthieu Thériault"]
[null,"CHANTIER 32","18-5540","Javier Boncoeur",null,null,null,"Matthieu Varieur"]
[null,"CHANTIER 33","18-5595","Jean Couturier",null,null,null,"Merle Saurel"]
[null,"CHANTIER 34","18-5614","Jean Couturier",null,null,null,"Michel Batard"]
[null,"CHANTIER 35","17-5430","Luc Béland",null,null,null,"Nicolas Babin"]
[null,"CHANTIER 36","18-5543","Germain Carignan",null,null,null,"Noël De La Ronde"]
[null,"CHANTIER 37","18-5536","Ganelon Bélair",null,null,null,"Normand Paiement"]
[null,"CHANTIER 38","18-5537",null,null,null,null,"Odo Ruel"]
[null,"CHANTIER 39","18-5524"]
[null,"CHANTIER 40","18-5582","Delmar Lavallée"]
[null,"CHANTIER 41","18-5596","Jay Tougas"]
[null,"CHANTIER 42","18-5553","Éric Méthot"]